[Event "Serbian League 2024"]
[Site "Bajina Basta"]
[Date "2024.09.29"]
[Round "3.1"]
[White "Puranik, Abhimanyu"]
[Black "Krstulovic, Alex"]
[Result "1-0"]
[ECO "D78"]
[WhiteElo "2639"]
[BlackElo "2452"]
[Annotator "TA"]
[PlyCount "65"]
[EventDate "2024.09.26"]
[EventType "team-tourn"]
[EventCountry "SRB"]
[SourceTitle "playchess.com"]
[Source "ChessBase"]
[SourceQuality "1"]
[TimeControl "40/5400+30:1800+30"]

{[%evp 11,65,6,16,0,0,0,16,9,11,0,12,0,18,8,25,0,29,37,55,72,65,93,77,82,89,85,76,45,93,96,114,121,114,127,170,173,258,255,261,247,245,239,245,202,378,381,420,420,419,417,405,285,440,416,457,441]} 1. Nf3 {[%emt 0:00:07]} Nf6 {[%emt 0:01:15]} 2. g3 {[%emt 0:00:10]} g6 {[%emt 0:00:40]} 3. c4 {[%emt 0:00:25]} Bg7 {[%emt 0:00:07]} 4. Bg2 {[%emt 0:00:14]} c6 {[%emt 0:01:07]} 5. O-O {[%emt 0:01:11]} O-O {[%emt 0:00:05]} 6. d4 {[%emt 0:02:17]} d5 {[%emt 0:00:21]} 7. a4 {[%emt 0:00:23]} a5 {[%emt 0:01:59]} 8. cxd5 {[%emt 0:00:33]} cxd5 {[%emt 0:00:06]} 9. Qb3 {[%emt 0:00:06] The position is equal.} Nc6 {[%emt 0:03:12]} 10. Bf4 {[%emt 0:01:19]} Nb4 {[%emt 0:05:12]} 11. Na3 {[%emt 0:00:28]} Bf5 {[%emt 0:04:11]} 12. Rfc1 {[%emt 0:00:21]} Qb6 {[%emt 0:12:44]} 13. Bc7 {[%emt 0:29:46]} Qa6 {[%emt 0:05:44]} (13... Qe6 $5) 14. Bf1 {[%emt 0:00:16][%cal Oe2e4] [#] Strongly threatening e4!} Ne4 {[%emt 0:07:34]} 15. Nc2 {[%emt 0:10:57]} Qc4 {[%emt 0:23:39]} 16. Qxc4 {[%emt 0:01:54]} dxc4 {[%emt 0:00:39]} 17. Nxb4 {[%emt 0:09:29]} axb4 {[%emt 0:00:05]} 18. Rxc4 {[%emt 0:00:26]} Rfc8 {[%emt 0:00:05]} 19. Rcc1 {[%emt 0:05:39]} Nc3 {[%emt 0:13:46]} 20. Bf4 $16 {[%emt 0:00:40]} (20. bxc3 b3 21. Rcb1 (21. Nh4 $2 b2 $19) 21... Bxb1 (21... Rxc7 22. Rxb3 Rac8 23. Rb5 $14) 22. Rxb1 Rxc7 23. Rxb3 e5 (23... Rxa4 24. e3 $15) 24. Nxe5 Bxe5 (24... Rxa4 25. Nd3 $11) 25. dxe5 Rxa4 $11) 20... Nd5 {[%emt 0:03:04]} 21. Bd2 {[%emt 0:00:47]} Rxc1 {[%emt 0:00:13]} 22. Rxc1 {[%emt 0:00:13]} b3 {[%emt 0:03:19]} 23. e3 {[%emt 0:06:28]} Nb6 {[%emt 0:01:20]} (23... Be4 $142) 24. a5 $18 {[%emt 0:00:25]} Na4 {[%emt 0:00:55]} 25. Rc7 {[%emt 0:06:07][%csl LRb7,LRe7]} Nxb2 {[%emt 0:01:13]} 26. Rxb7 {[%emt 0:00:14]} (26. Rxe7 Rb8 $14) 26... Be6 {[%emt 0:00:16]} 27. e4 {[%emt 0:02:54][%cal Oa5a6]} (27. Rxe7 $6 Nc4 $16) 27... f5 $2 {[%emt 0:02:08]} (27... Nc4 {was worth a try.}) 28. d5 {[%emt 0:01:20][%cal Bd4d5,Bd5d6][%mdl 32]} (28. Rxe7 Bc4 29. Bxc4+ Nxc4 $18) 28... Bf7 {[%emt 0:00:04]} 29. Ng5 {[%emt 0:00:37] Hoping for Nxf7.} ({Less strong is} 29. Rxb3 fxe4 30. Ng5 Bxd5 $18) 29... fxe4 {[%emt 0:02:44]} 30. Nxf7 {[%emt 0:00:03]} ({And not} 30. Nxe4 Bxd5 31. Rb4 Nd1 $11) 30... Kxf7 {[%emt 0:00:05]} 31. Rxb3 {[%emt 0:00:14]} Na4 {[%emt 0:01:42]} (31... Nd3 $142 32. Kg2 e3 33. fxe3 (33. Bxe3 Ne1+ 34. Kh3 Nf3 $18) 33... Nc5) 32. Ra3 {[%emt 0:02:09]} Nb6 {[%emt 0:01:38] [#]} 33. d6 $1 {[%emt 0:00:42][%mdl 512] Weighted Error Value: White=0.13 (very precise) /Black=0.32.  Mistake:       	---       	Black=4      Inaccurate:     	White=1     	Black=2      OK:         	White=14    	Black=8      Best:        	White=5     	---} 1-0

[Event "Serbian League 2024"]
[Site "Bajina Basta"]
[Date "2024.09.29"]
[Round "3.2"]
[White "Popovic, Dusan"]
[Black "Gagunashvili, Merab"]
[Result "1/2-1/2"]
[ECO "C48"]
[WhiteElo "2494"]
[BlackElo "2550"]
[Annotator "TA"]
[PlyCount "29"]
[EventDate "2024.09.26"]
[EventType "team-tourn"]
[EventCountry "SRB"]
[SourceTitle "playchess.com"]
[Source "ChessBase"]
[SourceQuality "1"]
[TimeControl "40/5400+30:1800+30"]

{[%evp 10,29,8,10,18,20,25,31,28,20,24,20,22,1,-6,0,15,0,0,-2,27,29]} 1. e4 {[%emt 0:00:12]} e5 {[%emt 0:00:04]} 2. Nf3 {[%emt 0:00:15]} Nc6 {[%emt 0:00:06]} 3. Nc3 {[%emt 0:00:17]} Nf6 {[%emt 0:00:15]} 4. Bb5 {[%emt 0:00:06]} Nd4 {[%emt 0:01:54]} 5. O-O {[%emt 0:00:47]} Nxb5 {[%emt 0:07:18]} 6. Nxb5 {[%emt 0:00:16]} a6 {[%emt 0:02:14]} 7. Nc3 {[%emt 0:00:40]} d6 {[%emt 0:00:13]} 8. d4 {[%emt 0:00:54]} exd4 {[%emt 0:00:25] White is slightly better.} 9. Nxd4 {[%emt 0:00:48]} Be7 {[%emt 0:01:06]} 10. Qf3 {[%emt 0:01:47]} O-O {[%emt 0:00:54]} 11. Nf5 {[%emt 0:09:47]} Bxf5 {[%emt 0:01:56]} 12. Qxf5 {[%emt 0:00:13]} Qc8 {[%emt 0:06:24]} 13. Qf3 {[%emt 0:05:22]} Re8 {[%emt 0:01:31]} 14. Re1 {[%emt 0:14:33]} Qg4 {[%emt 0:06:45]} 15. Qxg4 {[%emt 0:04:38] Not much happened in this game.   Weighted Error Value: White=0.07 (flawless) /Black=0.06 (flawless) .  Inaccurate:     	---       	Black=1      OK:         	White=2     	Black=5      Best:        	White=1     	---} 1/2-1/2

[Event "Serbian League 2024"]
[Site "Bajina Basta"]
[Date "2024.09.29"]
[Round "3.3"]
[White "Draskovic, Luka"]
[Black "Sedlak, Nikola"]
[Result "1/2-1/2"]
[ECO "C01"]
[WhiteElo "2497"]
[BlackElo "2401"]
[Annotator "TA"]
[PlyCount "44"]
[EventDate "2024.09.26"]
[EventType "team-tourn"]
[EventCountry "SRB"]
[SourceTitle "playchess.com"]
[Source "ChessBase"]
[SourceQuality "1"]
[TimeControl "40/5400+30:1800+30"]

{[%evp 19,44,42,60,43,69,74,51,0,16,18,11,0,16,32,25,25,56,45,64,26,31,43,41,20,80,64,74]} 1. e4 {[%emt 0:00:33]} e6 {[%emt 0:00:15]} 2. d4 {[%emt 0:00:30]} d5 {[%emt 0:00:12]} 3. exd5 {[%emt 0:00:13]} exd5 {[%emt 0:00:19]} 4. Nf3 {[%emt 0:00:05]} Nc6 {[%emt 0:00:31]} 5. Bd3 {[%emt 0:06:06]} Bd6 {[%emt 0:00:22]} 6. O-O {[%emt 0:10:15]} Nge7 {[%emt 0:04:18]} 7. c3 {[%emt 0:04:38]} Bg4 {[%emt 0:01:15]} 8. Re1 {[%emt 0:01:54]} Qd7 {[%emt 0:00:57]} 9. Nbd2 {[%emt 0:04:36]} O-O-O {[%emt 0:03:09]} 10. b4 {[%emt 0:03:48][%cal Bb2b4,Bb4b5][%mdl 32]} Rde8 {[%emt 0:03:15]} 11. b5 {[%emt 0:10:59]} Nd8 {[%emt 0:00:34]} 12. Qa4 {[%emt 0:01:50]} Kb8 {[%emt 0:00:56]} 13. Ba3 {[%emt 0:08:33]} (13. Ne5 $14 Bxe5 14. dxe5 (14. Rxe5 Ng6 $15)) 13... f6 {[%emt 0:05:43]} 14. Bxd6 {[%emt 0:06:36]} Qxd6 {[%emt 0:00:32]} 15. Re3 {[%emt 0:01:16]} Nc8 {[%emt 0:09:37]} 16. Rxe8 {[%emt 0:06:55]} Rxe8 {[%emt 0:00:31]} 17. b6 {[%emt 0:00:06]} Bd7 {[%emt 0:02:45]} 18. bxa7+ {[%emt 0:04:17]} Nxa7 {[%emt 0:02:37]} 19. Qc2 {[%emt 0:00:13]} g6 {[%emt 0:01:24]} 20. a4 {[%emt 0:00:38]} Ne6 {[%emt 0:01:06]} 21. g3 {[%emt 0:04:31] Repels Nf4} c5 {[%emt 0:12:57]} (21... Nc8 $11) 22. dxc5 $16 {[%emt 0:02:23]} Nxc5 {[%emt 0:00:48] Weighted Error Value: White=0.10 (very precise) /Black=0.19 (very precise) .  Mistake:       	White=1     	Black=1      Inaccurate:     	White=1     	Black=1      OK:         	White=4     	Black=3      Best:        	White=2     	---} 1/2-1/2

[Event "Serbian League 2024"]
[Site "Bajina Basta"]
[Date "2024.09.29"]
[Round "3.4"]
[White "Stojanovic, Dalibor"]
[Black "Bryakin, Mikhail"]
[Result "1/2-1/2"]
[ECO "C24"]
[WhiteElo "2448"]
[BlackElo "2438"]
[Annotator "TA"]
[PlyCount "94"]
[EventDate "2024.09.26"]
[EventType "team-tourn"]
[EventCountry "SRB"]
[SourceTitle "playchess.com"]
[Source "ChessBase"]
[SourceQuality "1"]
[TimeControl "40/5400+30:1800+30"]

{[%evp 10,94,33,-3,27,0,0,0,0,0,0,0,0,-18,-7,-10,60,30,42,0,15,0,1,0,0,-8,0,0,0,0,0,0,0,0,0,-17,-12,-13,-12,-12,-17,-12,0,-7,-6,-2,0,0,0,-11,-10,-12,-10,-12,-9,-8,-8,-9,-9,-14,-14,-14,-8,-8,0,-14,0,-8,-8,-8,0,-32,0,0,0,0,0,0,0,0,0,0,0,0,0,0,0]} 1. e4 {[%emt 0:00:03]} e5 {[%emt 0:00:11]} 2. Nf3 {[%emt 0:00:21]} Nc6 {[%emt 0:00:13]} 3. Bc4 {[%emt 0:00:23]} Nf6 {[%emt 0:00:10]} 4. d3 {[%emt 0:00:04]} d5 {[%emt 0:00:11]} 5. exd5 {[%emt 0:01:51]} Nxd5 {[%emt 0:00:07]} 6. Nc3 {[%emt 0:09:57]} Nb6 {[%emt 0:06:27]} 7. Bb5 {[%emt 0:07:54]} Bd6 {[%emt 0:05:00]} 8. O-O {[%emt 0:08:40][%cal Of3e5]} O-O {[%emt 0:00:59]} 9. Bxc6 {[%emt 0:06:42]} bxc6 {[%emt 0:00:09]} 10. Re1 {[%emt 0:01:11]} f6 {[%emt 0:04:14]} 11. h3 {[%emt 0:05:20]} Qd7 {[%emt 0:03:42]} 12. Ne4 {[%emt 0:10:52]} f5 {[%emt 0:15:45]} (12... c5 $11) 13. Ng3 {[%emt 0:01:18] A dynamic duo of knights.} Re8 {[%emt 0:01:08]} 14. Bd2 {[%emt 0:05:02]} e4 {[%emt 0:04:29]} 15. dxe4 {[%emt 0:08:42]} Bxg3 {[%emt 0:01:23]} 16. fxg3 {[%emt 0:00:03] [#] exf5 is the strong threat.} fxe4 {[%emt 0:00:40]} 17. Ng5 {[%emt 0:05:54]} Qd4+ {[%emt 0:09:35]} 18. Be3 {[%emt 0:00:14]} Qxd1 {[%emt 0:01:51]} 19. Raxd1 {[%emt 0:00:04]} h6 {[%emt 0:06:02]} 20. Bxb6 {[%emt 0:00:44]} cxb6 {[%emt 0:08:07]} 21. Nxe4 {[%emt 0:05:52][%cal Oe4f6] [#] Threatens to win with Nf6+!} Bf5 {[%emt 0:00:25]} 22. Nd6 {[%emt 0:00:17]} Rxe1+ {[%emt 0:00:59]} 23. Rxe1 {[%emt 0:01:43]} Bxc2 $11 {[%emt 0:00:11][%mdl 4096] Endgame. KRB-KRN} 24. Re7 {[%emt 0:08:08]} Rd8 {[%emt 0:03:34]} 25. Nc4 {[%emt 0:01:35]} Rd1+ {[%emt 0:02:10]} 26. Kf2 {[%emt 0:01:10][%cal Oc4e3]} Bd3 {[%emt 0:06:06]} 27. Ne5 {[%emt 0:00:21]} Bb5 {[%emt 0:09:20]} 28. Rxa7 {[%emt 0:05:01]} Rd2+ {[%emt 0:00:04]} 29. Kf3 {[%emt 0:00:19]} Rxb2 {[%emt 0:00:17]} 30. h4 {[%emt 0:00:08]} Bf1 {[%emt 0:01:01]} 31. g4 {[%emt 0:00:42]} Bxg2+ {[%emt 0:00:45]} 32. Kg3 {[%emt 0:00:12]} Bd5 {[%emt 0:02:08]} 33. Ra8+ {[%emt 0:03:30]} Kh7 {[%emt 0:00:21]} 34. h5 {[%emt 0:03:13]} Rg2+ {[%emt 0:01:53]} 35. Kh4 {[%emt 0:00:00]} Rh2+ {[%emt 0:00:05]} 36. Kg3 {[%emt 0:00:00]} Rg2+ {[%emt 0:00:06]} 37. Kh4 {[%emt 0:00:00]} Rh2+ {[%emt 0:03:16]} 38. Kg3 {[%emt 0:00:00]} Rxa2 {[%emt 0:00:21]} 39. Rd8 {[%emt 0:00:00]} Be4 {[%emt 0:03:44]} 40. Kf4 {[%emt 0:00:00]} (40. g5 $5 hxg5 41. Nf7 Rg2+ 42. Kh3 g4+ 43. Kh4 Rh2+ 44. Kxg4 Bf3+ 45. Kxf3 Rxh5 46. Kf4 $18) 40... Ra4 {[%emt 0:00:47]} 41. Nd7 {[%emt 0:04:36][%cal Of4e5] Ke5! would now be deadly. The position is equal.} Bc2+ {[%emt 0:21:19]} 42. Ke5 $1 {[%emt 0:03:44] Nf8+ would kill now.} Re4+ {[%emt 0:02:47]} (42... Rxg4 43. Nf8+ (43. Nxb6 $2 Re4+ 44. Kd6 Rd4+ 45. Ke7 Rxd8 $19) 43... Kg8 44. Ng6+ Kh7 45. Rh8#) 43. Kd6 {[%emt 0:00:21]} Rd4+ {[%emt 0:00:20]} (43... Rxg4 44. Nf8+ Kg8 45. Ng6+ Kh7 46. Rh8#) 44. Ke7 {[%emt 0:00:45]} Re4+ {[%emt 0:00:38]} (44... Rxg4 45. Nf8+ Kh8 46. Ng6+ Kh7 47. Rh8#) 45. Kd6 {[%emt 0:00:07]} Rd4+ {[%emt 0:00:55]} ({Stronger than} 45... Rxg4 46. Nf8+ Kg8 47. Ng6+ Kh7 48. Rh8#) 46. Ke7 {[%emt 0:00:04] White wants to mate with Nf8+.} Re4+ {[%emt 0:01:47]} ({Inferior is} 46... Rxg4 47. Nf8+ Kh8 48. Ng6+ Kh7 49. Rh8#) 47. Kd6 {[%emt 0:00:05] Intending Nf8+ and mate.} Rd4+ {[%emt 0:00:08] Weighted Error Value: White=0.06 (flawless) /Black=0.07 (flawless) .  Mistake:       	---       	Black=1      Inaccurate:     	White=4     	Black=1      OK:         	White=17    	Black=23     Best:        	White=4     	Black=2      Strong:       	White=1     	---} ({Worse is} 47... Rxg4 48. Nf8+ Kg8 49. Ng6+ Kh7 50. Rh8#) 1/2-1/2

[Event "Serbian League 2024"]
[Site "Bajina Basta"]
[Date "2024.09.29"]
[Round "3.5"]
[White "Radovanovic, Mihajlo"]
[Black "Alimpic, Aleksa"]
[Result "1-0"]
[ECO "B12"]
[WhiteElo "2426"]
[BlackElo "2253"]
[Annotator "TA"]
[PlyCount "115"]
[EventDate "2024.09.26"]
[EventType "team-tourn"]
[EventCountry "SRB"]
[SourceTitle "playchess.com"]
[Source "ChessBase"]
[SourceQuality "1"]
[TimeControl "40/5400+30:1800+30"]

{[%evp 9,115,21,14,10,19,12,55,56,52,58,50,58,49,49,46,52,62,37,55,24,31,31,52,22,29,11,29,22,51,40,97,29,58,19,58,79,61,67,109,127,119,110,197,203,200,181,286,286,283,259,258,260,277,290,283,253,260,271,370,370,356,389,329,332,308,292,304,292,308,321,295,229,246,227,250,242,225,230,239,234,239,236,220,222,230,186,299,312,285,289,337,309,354,358,377,349,311,314,306,251,403,320,1167,806,1538,1414,1220,1237]} 1. e4 {[%emt 0:00:05]} c6 {[%emt 0:00:14]} 2. d4 {[%emt 0:00:07]} d5 {[%emt 0:00:05]} 3. e5 {[%emt 0:00:12]} Bf5 {[%emt 0:00:08]} 4. Nd2 {[%emt 0:00:21][%cal Bb1d2,Bd2b3,Bb3c5][%mdl 32]} e6 {[%emt 0:00:16]} 5. Nb3 {[%emt 0:00:08]} a6 {[%emt 0:00:19]} 6. Nf3 {[%emt 0:05:14]} c5 {[%emt 0:00:09]} 7. Be2 {[%emt 0:04:22]} Nc6 {[%emt 0:04:43]} 8. dxc5 {[%emt 0:09:30] White is slightly better.} Bxc5 {[%emt 0:00:46]} 9. Nxc5 {[%emt 0:00:05]} Qa5+ {[%emt 0:00:05]} 10. c3 {[%emt 0:00:03]} Qxc5 {[%emt 0:00:07]} 11. Be3 {[%emt 0:00:32]} Qa5 {[%emt 0:08:22]} 12. Qb3 {[%emt 0:07:02]} Qc7 {[%emt 0:02:15][%cal Of5g4]} 13. Bb6 {[%emt 0:05:00]} Qd7 {[%emt 0:04:25]} 14. O-O {[%emt 0:00:37] Black is weak on the dark squares} Nge7 {[%emt 0:00:18]} 15. Rad1 {[%emt 0:02:47]} O-O {[%emt 0:12:51]} 16. c4 {[%emt 0:00:50]} Bg4 {[%emt 0:01:33][%cal Bf5g4,Bg4h5,Bh5g6][%mdl 32]} 17. Rfe1 {[%emt 0:02:47]} Qc8 {[%emt 0:11:16]} 18. Rc1 {[%emt 0:26:54]} Bh5 {[%emt 0:11:18]} 19. h3 {[%emt 0:06:45]} Re8 {[%emt 0:06:25]} (19... h6 $14) 20. a3 {[%emt 0:03:09]} (20. g4 $16 Bg6 21. Nd2) 20... h6 {[%emt 0:00:49]} 21. Bf1 {[%emt 0:06:06]} Qd7 {[%emt 0:04:59]} 22. g4 $36 {[%emt 0:00:24][%mdl 2048] White is on the roll.} Bg6 {[%emt 0:02:03]} 23. Rcd1 {[%emt 0:00:19]} Qc8 {[%emt 0:01:14] Black is on the road to losing.} 24. Nd2 {[%emt 0:00:18] White is more active.} Nb8 {[%emt 0:09:41][%cal Bc6b8,Bb8d7,Bd7f6,Bf6e8][%mdl 32]} 25. Rc1 {[%emt 0:04:20] [#] cxd5 is the strong threat.} d4 {[%emt 0:08:43]} 26. Bxd4 $18 {[%emt 0:01:13]} Nec6 {[%emt 0:00:05]} 27. Bc5 {[%emt 0:01:24]} Rd8 {[%emt 0:02:44]} (27... Nxe5 $142 28. Rxe5 f6) 28. Bd6 {[%emt 0:03:05]} Nd7 {[%emt 0:01:45]} 29. Nf3 {[%emt 0:00:13]} Nf6 {[%emt 0:01:22]} 30. Qe3 {[%emt 0:04:05]} Ne8 {[%emt 0:01:27]} 31. Bc5 {[%emt 0:00:15]} a5 {[%emt 0:01:48]} 32. b3 {[%emt 0:00:23]} Nb8 {[%emt 0:02:42]} 33. h4 {[%emt 0:01:45][%cal Bh3h4,Bh4h5][%mdl 32]} Na6 {[%emt 0:00:16]} 34. Bb6 {[%emt 0:00:16][%csl LRa5,LRd8]} Rd7 {[%emt 0:00:16]} 35. h5 {[%emt 0:00:05]} (35. Bxa5 Nc5 36. h5 Bd3 $16) 35... Bh7 {[%emt 0:00:08]} 36. Rcd1 {[%emt 0:03:05]} (36. Bxa5 $6 Nc5 37. Rcd1 Rxa5 $18) 36... Nb8 {[%emt 0:01:38]} 37. g5 {[%emt 0:00:31]} hxg5 {[%emt 0:00:13]} 38. Nxg5 {[%emt 0:01:10]} (38. Qxg5 Rxd1 39. Rxd1 Nd7) 38... Bc2 {[%emt 0:00:23]} 39. Rxd7 {[%emt 0:00:59]} Nxd7 {[%emt 0:00:06]} 40. Bd4 {[%emt 0:02:11]} Nf8 {[%emt 0:01:24]} 41. Rc1 {[%emt 0:30:47]} Bf5 {[%emt 0:30:19]} 42. Be2 {[%emt 0:00:00]} Qc7 {[%emt 0:00:00]} 43. Bb6 {[%emt 0:00:00]} Qe7 {[%emt 0:00:00]} 44. Bc5 {[%emt 0:00:00]} Qc7 {[%emt 0:00:00]} 45. f4 {[%emt 0:00:00]} Rc8 {[%emt 0:00:00]} 46. Bd4 {[%emt 0:00:00]} Qe7 {[%emt 0:00:00]} 47. Bf3 {[%emt 0:00:00]} Qxa3 {[%emt 0:00:00]} (47... b6 $142 48. Kf2 (48. Bxb6 Qxa3 49. Bd4 a4 $18) 48... f6) 48. Ra1 {[%emt 0:00:00]} ({Don't take} 48. Bxb7 Rb8 $18) 48... Qe7 {[%emt 0:00:00]} 49. Rxa5 {[%emt 0:00:00]} Rd8 {[%emt 0:00:00]} 50. Ra7 {[%emt 0:00:00]} Rd7 {[%emt 0:00:00]} 51. Ra8 {[%emt 0:00:00] aiming for Bc5.} Rd8 {[%emt 0:00:00]} 52. Bc5 {[%emt 0:00:00] A strong pair of Bishops.} Qd7 {[%emt 0:00:00]} 53. Rxd8 {[%emt 0:00:00]} Qxd8 {[%emt 0:00:00]} 54. Qd4 {[%emt 0:00:00]} Qa5 {[%emt 0:00:00]} (54... Nd7 55. Bb4 (55. Bxb7 Qc7 $17) 55... Qc7) 55. b4 {[%emt 0:00:59]} (55. Bxb7 f6 $18) 55... Qa3 {[%emt 0:00:00]} (55... Qc7 56. b5 Nd7) 56. Bxf8 {[%emt 0:00:04][%cal Od4d7] Hoping for Qd7! White is clearly winning.} Kxf8 {[%emt 0:00:00] [#]} 57. Qd7 $1 {[%emt 0:00:06][%csl Gg5][%cal Rd7f7]} ({Less strong is} 57. Bxb7 Qxb4 58. Bf3 f6 $16) 57... Qe3+ {[%emt 0:00:00]} 58. Kg2 {[%emt 0:00:05] Weighted Error Value: White=0.14 (very precise) /Black=0.22 (precise) .  Mistake:       	White=1     	Black=6      Inaccurate:     	White=4     	Black=7      OK:         	White=25    	Black=21     Best:        	White=3     	Black=2} 1-0

[Event "Serbian League 2024"]
[Site "Bajina Basta"]
[Date "2024.09.29"]
[Round "3.6"]
[White "Popovic, Milan S"]
[Black "Lukovic, Vladimir"]
[Result "1/2-1/2"]
[ECO "C47"]
[WhiteElo "2367"]
[BlackElo "2431"]
[Annotator "TA"]
[PlyCount "44"]
[EventDate "2024.09.26"]
[EventType "team-tourn"]
[EventCountry "SRB"]
[SourceTitle "playchess.com"]
[Source "ChessBase"]
[SourceQuality "1"]
[TimeControl "40/5400+30:1800+30"]

{[%evp 13,44,0,9,-6,9,6,13,8,0,0,6,11,3,0,0,3,0,12,0,6,5,6,25,10,15,0,5,0,0,0,23,0,0]} 1. e4 {[%emt 0:00:02]} e5 {[%emt 0:00:17]} 2. Nc3 {[%emt 0:00:06]} Nf6 {[%emt 0:00:24]} 3. Nf3 {[%emt 0:00:17]} Nc6 {[%emt 0:00:18]} 4. d4 {[%emt 0:00:28]} exd4 {[%emt 0:00:26]} 5. Nxd4 {[%emt 0:00:07]} Bb4 {[%emt 0:00:31]} 6. Nxc6 {[%emt 0:00:12]} bxc6 {[%emt 0:00:16]} 7. Bd3 {[%emt 0:00:04][%cal Bf1d3,Bd3e4,Be4c6][%mdl 32]} d5 {[%emt 0:00:47]} 8. Bd2 {[%emt 0:00:22]} Bxc3 {[%emt 0:14:35]} 9. Bxc3 {[%emt 0:00:58]} dxe4 {[%emt 0:00:40]} 10. Bxf6 {[%emt 0:02:01]} Qxf6 {[%emt 0:00:08]} 11. Bxe4 {[%emt 0:00:04]} O-O {[%emt 0:03:07][%cal Of8e8] [#] Strongly threatening ...Re8!} 12. O-O {[%emt 0:00:06]} Qxb2 {[%emt 0:09:08]} 13. Bxc6 {[%emt 0:00:32]} Rb8 {[%emt 0:00:06]} 14. Rb1 {[%emt 0:00:40]} Qxb1 {[%emt 0:00:06]} 15. Qxb1 {[%emt 0:00:03]} Rxb1 {[%emt 0:00:06]} 16. Rxb1 $11 {[%emt 0:00:03][%mdl 4096] Endgame. KRB-KRB} Rd8 {[%emt 0:01:38]} 17. Bf3 {[%emt 0:00:46]} Ba6 {[%emt 0:08:50]} 18. Rb4 {[%emt 0:13:08]} Kf8 {[%emt 0:04:49]} 19. h3 {[%emt 0:12:52]} Rd2 {[%emt 0:07:39]} 20. Ra4 {[%emt 0:04:27]} Bb5 {[%emt 0:06:22]} 21. Ra5 {[%emt 0:06:55]} Be2 {[%emt 0:05:48]} 22. Bxe2 {[%emt 0:08:06]} Rxe2 {[%emt 0:00:28] A rather calm draw.   Weighted Error Value: White=0.06 (flawless) /Black=0.05 (flawless) .  OK:         	White=6     	Black=7} 1/2-1/2